bitfinex/quotes_BTCUSD_20250822
["timestamp","ask_amount","ask_price","bid_price","bid_amount"]
[1755833497367,4.48015,113480.0,113470.0,0.00572161]
[1755833497598,0.14816,113480.0,113470.0,0.00572161]
[1755833497811,4.98015,113480.0,113470.0,0.00572161]
[1755833498065,0.23079601,113490.0,113470.0,0.00572161]
[1755833498265,0.22979601,113490.0,113470.0,0.00261161]
[1755833498429,0.22979601,113490.0,113480.0,0.00311]
[1755833498629,0.16199601,113490.0,113480.0,0.00524]
[1755833499037,0.41199601,113490.0,113480.0,0.00524]
[1755833500031,0.41299601,113490.0,113480.0,0.00524]
[1755833501390,0.41399601,113490.0,113480.0,0.00524]
[1755833503451,0.09859618,113490.0,113480.0,0.00524]
[1755833503650,4.43058618,113490.0,113480.0,0.00524]
[1755833503870,0.11239256,113490.0,113480.0,0.00524]
[1755833504491,0.11239256,113490.0,113480.0,0.00311]
[1755833504700,0.26071256,113490.0,113480.0,0.00311]
[1755833505565,0.16411638,113490.0,113480.0,0.00311]
[1755833505772,0.66411638,113490.0,113480.0,0.00311]
[1755833505994,4.98131,113490.0,113480.0,0.00311]
[1755833506203,0.14832,113490.0,113480.0,0.00311]
[1755833506389,0.64832,113490.0,113480.0,0.00311]
[1755833508469,0.64832,113490.0,113470.0,0.00048161]
[1755833508671,0.64832,113490.0,113470.0,0.00344161]
[1755833508868,0.72959988,113490.0,113470.0,0.00344161]
[1755833509095,0.22959988,113490.0,113470.0,0.00344161]
[1755833509311,0.0303332,113490.0,113470.0,0.00344161]
[1755833510083,0.03653453,113490.0,113470.0,0.00344161]
[1755833510482,0.14836,113480.0,113470.0,0.00344161]
[1755833510657,0.14836,113480.0,113470.0,0.00540161]
[1755833512225,0.14836,113480.0,113470.0,0.00048161]
[1755833512428,0.21457568,113480.0,113470.0,0.00048161]
[1755833512645,0.64836,113480.0,113470.0,0.00148161]
[1755833512850,4.48035,113480.0,113470.0,0.00248161]
[1755833513062,0.14836,113480.0,113470.0,0.00248161]
[1755833516293,0.64836,113480.0,113470.0,0.00248161]
[1755833516457,4.98035,113480.0,113470.0,0.00248161]
[1755833516660,0.16417045,113480.0,113470.0,0.00248161]
[1755833516878,0.64836,113480.0,113470.0,0.00544161]
[1755833517082,4.98035,113480.0,113470.0,0.00544161]
[1755833517287,0.14836,113480.0,113470.0,0.00544161]
[1755833517519,0.64836,113480.0,113470.0,0.00544161]
[1755833517759,4.98035,113480.0,113470.0,0.00544161]
[1755833517984,0.14836,113480.0,113470.0,0.00544161]
[1755833518192,0.64836,113480.0,113470.0,0.00544161]
[1755833518394,4.98035,113480.0,113470.0,0.00544161]
[1755833518617,0.23522965,113480.0,113470.0,0.00544161]
[1755833518826,0.14836,113480.0,113470.0,0.00544161]
[1755833519039,0.64836,113480.0,113470.0,0.00544161]
[1755833519833,0.08163678,113490.0,113470.0,0.00544161]
[1755833520045,4.097446,113480.0,113470.0,0.00544161]
[1755833521103,4.245686,113480.0,113470.0,0.00544161]
[1755833521255,0.23510965,113480.0,113470.0,0.00544161]
[1755833521476,0.14824,113480.0,113470.0,0.00444161]
[1755833521692,0.64824,113480.0,113470.0,0.00444161]
[1755833521922,4.745686,113480.0,113470.0,0.00444161]
[1755833522123,0.14824,113480.0,113470.0,0.00444161]
[1755833522422,0.64824,113480.0,113470.0,0.00444161]
[1755833522642,4.76707695,113480.0,113470.0,0.00444161]
[1755833522888,0.16963095,113480.0,113470.0,0.00544161]
[1755833523480,0.16963095,113480.0,113470.0,0.00248161]
[1755833526872,0.16963095,113480.0,113470.0,0.00148161]
[1755833527714,0.16963095,113480.0,113470.0,0.00048161]
[1755833532463,0.18342882,113480.0,113470.0,0.00048161]
[1755833532894,0.0881448,113510.0,113470.0,0.00048161]
[1755833533097,0.06784,113490.0,113470.0,0.00048161]
[1755833533327,4.597446,113480.0,113470.0,0.00048161]
[1755833533536,4.097446,113480.0,113470.0,0.00048161]
[1755833534173,4.245566,113480.0,113470.0,0.00048161]
[1755833534375,0.14812,113480.0,113470.0,0.00048161]
[1755833534604,4.78361134,113480.0,113470.0,0.00048161]
[1755833534839,0.18616534,113480.0,113470.0,0.00048161]
[1755833535313,4.30014247,113480.0,113470.0,0.00048161]
[1755833535545,4.30634161,113480.0,113470.0,0.00048161]
[1755833536658,4.33364845,113480.0,113470.0,0.00048161]
[1755833537099,4.31985061,113480.0,113470.0,0.00048161]
[1755833537311,4.31985061,113480.0,113460.0,0.00296]
[1755833537524,4.097446,113470.0,113460.0,0.00296]
[1755833537753,4.20084678,113470.0,113460.0,0.00296]
[1755833537971,0.08686965,113470.0,113460.0,0.00296]
[1755833538182,0.1723675,113480.0,113460.0,0.00296]
[1755833538391,4.597446,113470.0,113460.0,0.00296]
[1755833538632,4.097446,113470.0,113450.0,0.07397804]
[1755833538811,0.14804,113460.0,113450.0,0.07397804]
[1755833538959,0.14804,113460.0,113450.0,0.07610804]
[1755833539176,0.16422391,113460.0,113450.0,0.07610804]
[1755833540598,0.16422391,113460.0,113450.0,0.07710804]
[1755833540804,0.16422391,113460.0,113450.0,0.00667]
[1755833541643,0.16422391,113460.0,113450.0,0.00454]
[1755833542037,0.16422391,113460.0,113450.0,0.00554]
[1755833542259,0.66422391,113460.0,113450.0,0.00554]
[1755833542493,4.76166991,113460.0,113450.0,0.00554]
[1755833542698,0.16422391,113460.0,113450.0,0.00554]
[1755833542908,0.66422391,113460.0,113450.0,0.00554]
[1755833543812,0.16422391,113460.0,113450.0,0.00554]
[1755833544299,0.66422391,113460.0,113450.0,0.00554]
[1755833544550,4.76166991,113460.0,113450.0,0.00554]
[1755833544753,0.16422391,113460.0,113450.0,0.00554]
[1755833545456,0.66422391,113460.0,113450.0,0.00554]
[1755833545693,4.26166991,113460.0,113450.0,0.00554]
[1755833545853,0.16422391,113460.0,113450.0,0.00554]
[1755833547376,0.16422391,113460.0,113450.0,0.0025]
[1755833547576,4.32950991,113460.0,113440.0,0.0004]
[1755833547827,4.097446,113450.0,113440.0,0.0034882]
[1755833547971,4.18431565,113450.0,113440.0,0.0056182]
[1755833548246,0.08686965,113450.0,113440.0,0.0056182]
[1755833548396,0.23206391,113460.0,113440.0,0.0056182]
[1755833548599,4.097446,113450.0,113440.0,0.0056182]
[1755833549119,4.097446,113450.0,113440.0,0.0066182]
[1755833549319,4.1112463,113450.0,113440.0,0.0056182]
[1755833549548,0.0138003,113450.0,113440.0,0.0056182]
[1755833549898,0.53838672,113450.0,113440.0,0.0056182]
[1755833550097,4.13583272,113450.0,113440.0,0.0056182]
[1755833550306,0.0138003,113450.0,113440.0,0.0066182]
[1755833550463,0.5138003,113450.0,113440.0,0.0066182]
[1755833551662,0.5138003,113450.0,113440.0,0.0076182]
[1755833554582,0.5138003,113450.0,113440.0,0.0054882]
[1755833554795,0.5138003,113450.0,113440.0,0.0076182]
[1755833554969,0.58838672,113450.0,113440.0,0.0076182]
[1755833555176,0.08838672,113450.0,113440.0,0.0076182]
[1755833555374,0.0138003,113450.0,113440.0,0.0076182]
[1755833555572,0.5138003,113450.0,113440.0,0.0076182]
[1755833555828,4.1112463,113450.0,113440.0,0.0076182]
[1755833556040,0.0138003,113450.0,113440.0,0.0076182]
[1755833567169,0.1640803,113450.0,113440.0,0.0076182]
[1755833569699,0.06784,113470.0,113440.0,0.0076182]
[1755833569909,4.097446,113460.0,113450.0,0.00307]
[1755833570089,4.097446,113460.0,113450.0,0.00507]
[1755833570888,4.247686,113460.0,113450.0,0.00507]
[1755833571092,0.15024,113460.0,113450.0,0.00507]
[1755833571649,0.15024,113460.0,113450.0,0.00557]
[1755833572482,0.1640394,113460.0,113450.0,0.00557]
[1755833576968,0.15024,113460.0,113450.0,0.00557]
[1755833579034,0.16403936,113460.0,113450.0,0.00557]
[1755833580499,0.01379936,113460.0,113450.0,0.00557]
[1755833580932,0.01379936,113460.0,113450.0,0.032085]
[1755833603872,0.01181621,113460.0,113450.0,0.032085]
[1755833607739,0.21732,113470.0,113450.0,0.032085]
[1755833608134,0.23259459,113470.0,113450.0,0.032085]
[1755833608541,0.23259459,113470.0,113450.0,0.00557]
[1755833608961,0.23359459,113470.0,113460.0,0.026514]
[1755833609399,0.23979515,113470.0,113460.0,0.026514]
[1755833609631,0.24179515,113470.0,113460.0,0.026514]
[1755833609768,0.23979515,113470.0,113460.0,0.026514]
[1755833609977,0.23879515,113470.0,113460.0,0.026514]
[1755833610194,0.49179515,113470.0,113460.0,0.026514]
[1755833610832,0.50559381,113470.0,113460.0,0.026514]
[1755833611215,0.49939325,113470.0,113460.0,0.026514]
[1755833611410,0.50559382,113470.0,113460.0,0.026514]
[1755833611830,0.50559385,113470.0,113460.0,0.026514]
[1755833612029,0.43775385,113470.0,113460.0,0.026514]
[1755833612836,0.42247926,113470.0,113460.0,0.026514]
[1755833613261,0.42247926,113470.0,113460.0,0.02637621]
[1755833614484,0.4224784,113470.0,113460.0,0.02637621]
[1755833615818,0.07433073,113470.0,113460.0,0.02637621]
[1755833617001,0.22341073,113470.0,113460.0,0.02637621]
[1755833617405,0.21721099,113470.0,113460.0,0.02637621]
[1755833617663,0.21721099,113470.0,113460.0,0.02956621]
[1755833621745,0.21721099,113470.0,113460.0,0.03161621]
[1755833623438,0.06813099,113470.0,113460.0,0.03381962]
[1755833623646,0.01679866,113470.0,113460.0,0.03381962]
[1755833623860,0.01579866,113470.0,113460.0,0.03381962]
[1755833624077,0.01379866,113470.0,113460.0,0.03381962]
[1755833624327,0.01479866,113470.0,113460.0,0.03161621]
[1755833624536,0.01479866,113470.0,113460.0,0.03261621]
[1755833624964,0.01379866,113470.0,113460.0,0.03261621]
[1755833625175,0.01379866,113470.0,113460.0,0.03361621]
[1755833625617,0.01379866,113470.0,113460.0,0.03261621]
[1755833625826,0.14904,113480.0,113460.0,0.03261621]
[1755833626035,0.14904,113480.0,113470.0,0.00319]
[1755833626247,0.5,113490.0,113470.0,0.00524]
[1755833626457,4.246486,113490.0,113470.0,0.00524]
[1755833626681,0.14904,113490.0,113470.0,0.028561]
[1755833626894,0.06784,113500.0,113480.0,0.00319]
[1755833627035,0.149,113490.0,113480.0,0.00319]
[1755833627260,0.16279601,113490.0,113480.0,0.00525]
[1755833627654,0.16279601,113490.0,113480.0,0.031758]
[1755833628096,0.16288085,113490.0,113480.0,0.031758]
[1755833632735,0.01388085,113490.0,113480.0,0.031758]
[1755833632936,0.16280085,113490.0,113480.0,0.031758]
[1755833639506,0.01388085,113490.0,113480.0,0.031758]
[1755833641477,0.16256085,113490.0,113480.0,0.031758]
[1755833644831,0.16256085,113490.0,113480.0,0.029698]
[1755833646818,0.01388085,113490.0,113480.0,0.029698]
[1755833647025,0.16252085,113490.0,113480.0,0.029698]
[1755833647467,0.01388085,113490.0,113480.0,0.029698]
[1755833647674,0.16248085,113490.0,113480.0,0.029698]
[1755833649487,0.16184742,113490.0,113480.0,0.029698]
[1755833651820,0.16184742,113490.0,113480.0,0.031758]
[1755833653904,0.16184742,113490.0,113480.0,0.029698]
[1755833654815,0.16228742,113490.0,113480.0,0.02942263]
[1755833656119,0.0678,113510.0,113480.0,0.02942263]
[1755833656338,4.097446,113500.0,113480.0,0.02942263]
[1755833656562,4.14744784,113500.0,113480.0,0.02942263]
[1755833656792,0.03097256,113500.0,113480.0,0.026508]
[1755833657000,4.097446,113490.0,113480.0,0.026508]
[1755833657239,4.2520816,113490.0,113480.0,0.026508]
[1755833657495,0.1546356,113490.0,113480.0,0.026508]
[1755833657918,0.64844,113490.0,113480.0,0.026508]
[1755833658117,0.14844,113490.0,113480.0,0.026508]
[1755833659090,0.16223626,113490.0,113480.0,0.026508]
[1755833659287,0.16223626,113490.0,113480.0,0.029608]
[1755833660991,0.16223626,113490.0,113480.0,0.031568]
[1755833661422,0.66223626,113490.0,113480.0,0.031568]
[1755833661622,0.16223626,113490.0,113480.0,0.031568]
[1755833661831,0.66223626,113490.0,113480.0,0.031568]
[1755833661980,0.16223626,113490.0,113480.0,0.031568]
[1755833662391,0.01379626,113490.0,113480.0,0.031568]
[1755833662592,0.16219626,113490.0,113480.0,0.031568]
[1755833670620,0.01379626,113490.0,113480.0,0.031568]
[1755833671079,0.01379626,113490.0,113480.0,0.04901702]
[1755833671288,0.14832,113500.0,113480.0,0.04901702]
[1755833671502,0.14832,113500.0,113480.0,0.04591702]
[1755833671710,0.14832,113500.0,113490.0,0.0031]
[1755833671914,0.14832,113500.0,113490.0,0.00506]
[1755833672123,0.14832,113500.0,113490.0,0.031565]
[1755833672344,0.06828185,113510.0,113490.0,0.03668671]
[1755833672498,0.21660185,113510.0,113490.0,0.03668671]
[1755833672704,0.21660185,113510.0,113500.0,0.0031]
[1755833672887,0.21660185,113510.0,113500.0,0.00506]
[1755833673089,0.21660185,113510.0,113500.0,0.031564]
[1755833673533,0.21660185,113510.0,113500.0,0.029564]
[1755833673947,0.46857185,113510.0,113500.0,0.028564]
[1755833674147,0.48536596,113510.0,113500.0,0.029064]
[1755833674802,0.48736596,113510.0,113500.0,0.029064]
[1755833675656,0.48736596,113510.0,113500.0,0.028964]
[1755833675863,0.48736596,113510.0,113500.0,0.027004]
[1755833677029,0.48736596,113510.0,113500.0,0.032064]
[1755833677783,0.47357185,113510.0,113500.0,0.032064]
[1755833678189,0.47156185,113510.0,113500.0,0.032064]
[1755833678789,0.25548185,113510.0,113500.0,0.032064]
[1755833678982,0.40376185,113510.0,113500.0,0.032064]
[1755833679565,0.15376185,113510.0,113500.0,0.032064]
[1755833679976,0.15076185,113510.0,113500.0,0.032064]
[1755833680380,0.16255541,113510.0,113500.0,0.033064]
[1755833680658,0.01427541,113510.0,113500.0,0.033064]
[1755833681770,0.01527541,113510.0,113500.0,0.033064]
[1755833685003,0.01527541,113510.0,113500.0,0.04436694]
[1755833685797,0.00148185,113510.0,113500.0,0.04436694]
[1755833687802,0.00148185,113510.0,113500.0,0.06181596]
[1755833689097,0.01527344,113510.0,113500.0,0.06181596]
[1755833689300,0.01527344,113510.0,113500.0,0.05051302]
[1755833689698,0.01427344,113510.0,113500.0,0.04951302]
[1755833689921,0.01427344,113510.0,113500.0,0.05051302]
[1755833690194,0.01427344,113510.0,113500.0,0.05151302]
[1755833690410,0.01427344,113510.0,113500.0,0.05051302]
[1755833690626,0.01427344,113510.0,113500.0,0.05956432]
[1755833691079,0.01427344,113510.0,113500.0,0.05856432]
[1755833691533,0.01427344,113510.0,113500.0,0.06156432]
[1755833694549,0.01427344,113510.0,113500.0,0.32826432]
[1755833695495,0.01427344,113510.0,113500.0,0.47830432]
[1755833701199,0.01625344,113510.0,113500.0,0.47830432]
[1755833701601,0.01427344,113510.0,113500.0,0.47830432]
[1755833707122,0.01639344,113510.0,113500.0,0.47324432]
[1755833707338,0.01639344,113510.0,113500.0,0.47380432]
[1755833707974,0.00260185,113510.0,113500.0,0.47886432]
[1755833708200,0.00260185,113510.0,113500.0,0.47586432]
[1755833708407,0.00260185,113510.0,113500.0,0.47786432]
[1755833709671,0.00260185,113510.0,113500.0,0.47386432]
[1755833710090,0.00260185,113510.0,113500.0,0.47686432]
[1755833710691,0.01639312,113510.0,113500.0,0.47686432]
[1755833712195,0.01639312,113510.0,113500.0,0.21016432]
[1755833712406,0.01639312,113510.0,113500.0,0.20511302]
[1755833714225,0.01427312,113510.0,113500.0,0.20511302]
[1755833721335,0.01427312,113510.0,113500.0,0.05451302]
[1755833721538,0.01427312,113510.0,113500.0,0.20475302]
[1755833721731,0.01639312,113510.0,113500.0,0.20475302]
[1755833722451,0.01427312,113510.0,113500.0,0.20475302]
[1755833723947,0.01321145,113510.0,113500.0,0.20475302]
[1755833724173,0.01533145,113510.0,113500.0,0.20475302]
[1755833724763,0.01321145,113510.0,113500.0,0.20475302]
[1755833735951,0.01321145,113510.0,113500.0,0.47145302]
[1755833738778,0.02260124,113530.0,113510.0,0.01744902]
[1755833738985,0.00014447,113530.0,113520.0,0.15433225]
[1755833739179,0.03574043,113530.0,113520.0,0.15751225]
[1755833739423,0.03574043,113530.0,113520.0,0.17275902]
[1755833739622,0.03574043,113530.0,113520.0,0.17496127]
[1755833740191,0.03574043,113530.0,113520.0,0.20145527]
[1755833740326,0.03574043,113530.0,113520.0,0.19925302]
[1755833740959,0.04952915,113530.0,113520.0,0.20125302]
[1755833741971,0.04952915,113530.0,113520.0,0.20425302]
[1755833744931,0.0678,113570.0,113530.0,0.01744902]
[1755833745155,0.076183,113570.0,113540.0,0.00220186]
[1755833745382,0.06794444,113570.0,113540.0,0.00538186]
[1755833745537,0.08173228,113570.0,113540.0,0.00538186]
[1755833745739,0.1184332,113570.0,113550.0,0.026492]
[1755833746190,0.25,113560.0,113550.0,0.026492]
[1755833747587,0.253,113560.0,113550.0,0.026492]
[1755833747795,0.253,113560.0,113550.0,0.026992]
[1755833748979,0.254,113560.0,113550.0,0.026992]
[1755833751989,0.08373939,113560.0,113550.0,0.026992]
[1755833752594,0.09752738,113560.0,113550.0,0.026992]
[1755833753306,0.01778799,113560.0,113550.0,0.026992]
[1755833753582,0.01378799,113560.0,113550.0,0.026992]
[1755833753872,0.01478799,113560.0,113550.0,0.026992]
[1755833754721,0.01478799,113560.0,113550.0,0.030002]
[1755833754921,0.01478799,113560.0,113550.0,0.032022]
[1755833756071,0.01478799,113560.0,113550.0,0.04947102]
[1755833756072,0.001,113560.0,113550.0,0.04947102]
[1755833756311,0.001,113560.0,113550.0,0.0619023]
[1755833757202,0.03684536,113570.0,113550.0,0.0619023]
[1755833757478,0.03684536,113570.0,113550.0,0.0588923]
[1755833757697,0.03684536,113570.0,113560.0,0.00301]
[1755833757903,0.03684536,113570.0,113560.0,0.00503]
[1755833758545,0.03684536,113570.0,113560.0,0.031519]
[1755833758763,0.03684536,113570.0,113560.0,0.04326569]
[1755833758974,0.05063171,113570.0,113560.0,0.04326569]
[1755833759482,0.05063171,113570.0,113560.0,0.06391618]
[1755833759699,0.05063171,113570.0,113560.0,0.06611765]
[1755833760522,0.05063171,113570.0,113560.0,0.05668471]
[1755833761137,0.05063171,113570.0,113560.0,0.03923569]
[1755833761354,0.05063171,113570.0,113560.0,0.027489]
[1755833762764,0.05063171,113570.0,113560.0,0.001]
[1755833767234,0.05063171,113570.0,113560.0,0.00603]
[1755833767858,0.05063171,113570.0,113560.0,0.001]
[1755833769255,0.06776,113590.0,113560.0,0.001]
[1755833769612,0.01378624,113570.0,113560.0,0.001]
[1755833769811,0.06776,113590.0,113560.0,0.001]
[1755833770064,4.097446,113580.0,113560.0,0.001]
[1755833770292,4.10569052,113580.0,113550.0,0.02095902]
[1755833770509,4.14085074,113580.0,113560.0,0.026489]
[1755833770731,0.04340474,113580.0,113560.0,0.026489]
[1755833771339,0.04440474,113580.0,113560.0,0.026489]
[1755833772794,0.05058707,113580.0,113560.0,0.026489]
[1755833773015,0.05058707,113580.0,113550.0,0.00064444]
[1755833773223,4.597446,113570.0,113550.0,0.02713544]
[1755833773453,4.097446,113570.0,113550.0,0.02713544]
[1755833773860,4.10568918,113570.0,113550.0,0.02713544]
[1755833774071,0.02202989,113570.0,113550.0,0.02713544]
[1755833774281,0.52202989,113570.0,113550.0,0.02713544]
[1755833774429,4.61947589,113570.0,113550.0,0.02713544]
[1755833774633,0.02202989,113570.0,113550.0,0.02713544]
[1755833774853,0.52202989,113570.0,113550.0,0.02713544]
[1755833775277,0.16318671,113570.0,113550.0,0.02713544]
[1755833775483,0.67243044,113570.0,113550.0,0.02713544]
[1755833775677,4.75608973,113570.0,113550.0,0.02713544]
[1755833775908,0.15864373,113570.0,113550.0,0.02288144]
[1755833776124,0.66482644,113570.0,113550.0,0.02288144]
[1755833776469,0.66482644,113570.0,113540.0,0.00301]
[1755833776669,0.6649708,113570.0,113540.0,0.029503]
[1755833777111,0.6639708,113570.0,113540.0,0.029503]
[1755833777513,0.6649708,113570.0,113540.0,0.029503]
[1755833777716,0.6639708,113570.0,113540.0,0.029503]
[1755833778190,0.6649708,113570.0,113550.0,0.0005]
[1755833778573,0.67875831,113570.0,113550.0,0.0005]
[1755833779294,4.097446,113560.0,113550.0,0.0005]
[1755833781926,4.097446,113560.0,113550.0,0.0015]
[1755833784252,4.097446,113560.0,113550.0,0.00452]
[1755833784456,4.097446,113560.0,113550.0,0.0015]
[1755833784891,4.12835526,113560.0,113550.0,0.0015]
[1755833785099,4.11187032,113560.0,113550.0,0.0015]
[1755833785312,4.11187032,113560.0,113550.0,0.0005]
[1755833785940,4.10568847,113560.0,113550.0,0.0005]
[1755833786369,4.097446,113560.0,113550.0,0.0005]
[1755833787721,4.098446,113560.0,113550.0,0.0005]
[1755833794575,0.001,113560.0,113550.0,0.00553]
[1755833805401,0.00925112,113560.0,113550.0,0.00553]
[1755833806515,0.01543988,113560.0,113550.0,0.00553]
[1755833806974,0.51543988,113560.0,113550.0,0.00553]
[1755833807974,0.51543988,113560.0,113550.0,0.00352]
[1755833808432,0.55095237,113560.0,113550.0,0.00368]
[1755833808587,0.05095237,113560.0,113550.0,0.00368]
[1755833808796,0.05095237,113560.0,113550.0,0.00579]
[1755833809365,0.03194135,113560.0,113550.0,0.00579]
[1755833810368,0.03194135,113560.0,113550.0,0.0005]
[1755833810586,0.05095374,113560.0,113550.0,0.0005]
[1755833811005,0.05095374,113560.0,113550.0,0.00368]
[1755833811837,0.03194135,113560.0,113550.0,0.00368]
[1755833812707,0.03651529,113560.0,113550.0,0.00368]
[1755833812928,0.05096126,113560.0,113550.0,0.00368]
[1755833813576,0.03445596,113560.0,113550.0,0.00368]
[1755833813789,0.05096219,113560.0,113550.0,0.00368]
[1755833813999,0.05096219,113560.0,113550.0,0.0005]
[1755833814214,4.14840819,113560.0,113550.0,0.0005]
[1755833815456,4.14840819,113560.0,113550.0,0.00368]
[1755833815651,4.14840819,113560.0,113550.0,0.00579]
[1755833816035,4.14840784,113560.0,113550.0,0.00368]
[1755833817232,4.14840784,113560.0,113550.0,0.0005]
[1755833817433,4.23527749,113560.0,113550.0,0.0005]
[1755833817633,4.14840784,113560.0,113550.0,0.0005]
[1755833818915,4.14840639,113560.0,113550.0,0.0005]
[1755833819893,4.17216855,113560.0,113550.0,0.0005]
[1755833820029,4.42116855,113560.0,113550.0,0.0005]
[1755833820442,4.42316855,113560.0,113550.0,0.0005]
[1755833820859,4.42416855,113560.0,113550.0,0.0005]
[1755833821278,4.40765865,113560.0,113550.0,0.0005]
[1755833821481,4.40039529,113560.0,113550.0,0.0005]
[1755833821896,4.40039159,113560.0,113550.0,0.0005]
[1755833822088,4.90983365,113560.0,113550.0,0.0005]
[1755833822730,4.92362338,113560.0,113550.0,0.0005]
[1755833823086,4.92362338,113560.0,113550.0,0.00368]
[1755833823286,4.92362338,113560.0,113550.0,0.00579]
[1755833823287,4.41418132,113560.0,113550.0,0.00579]
[1755833823684,4.56418132,113560.0,113550.0,0.00579]
[1755833824097,4.56417786,113560.0,113550.0,0.00579]
[1755833828225,4.56413786,113560.0,113550.0,0.00579]
[1755833828884,4.41415651,113560.0,113550.0,0.00579]
[1755833829100,4.56411651,113560.0,113550.0,0.00579]
[1755833830050,0.46667051,113560.0,113550.0,0.00579]
[1755833830315,0.46048688,113560.0,113550.0,0.00579]
[1755833830520,0.46665643,113560.0,113550.0,0.00579]
[1755833830955,0.46665737,113560.0,113550.0,0.00579]
[1755833833417,0.46666038,113560.0,113550.0,0.00579]
[1755833834069,4.56410638,113560.0,113550.0,0.0005]
[1755833835181,4.58784697,113560.0,113550.0,0.0005]
[1755833835600,4.56410638,113560.0,113550.0,0.0005]
[1755833839360,4.55792329,113560.0,113550.0,0.0005]
[1755833839602,4.56411358,113560.0,113550.0,0.0005]
[1755833842369,4.67472382,113560.0,113550.0,0.0005]
[1755833842584,4.66647705,113560.0,113550.0,0.0005]
[1755833842798,4.67472511,113560.0,113550.0,0.0005]
[1755833844800,4.67472622,113560.0,113550.0,0.0005]
[1755833845498,4.58785657,113560.0,113550.0,0.0005]
[1755833847637,4.58785657,113560.0,113550.0,0.00567]
[1755833848573,4.58785657,113560.0,113550.0,0.00364]
[1755833848791,4.56311845,113560.0,113550.0,0.00364]
[1755833849015,4.58787709,113560.0,113550.0,0.00364]
[1755833850247,4.67474674,113560.0,113550.0,0.0005]
[1755833852098,4.67474853,113560.0,113550.0,0.0005]
[1755833853125,4.58787888,113560.0,113550.0,0.0005]
[1755833853333,4.58787888,113560.0,113550.0,0.00567]
[1755833858065,4.5796306,113560.0,113550.0,0.00567]
[1755833858311,4.58788584,113560.0,113550.0,0.00567]
[1755833860930,4.56414525,113560.0,113550.0,0.00567]
[1755833863271,0.46609925,113560.0,113550.0,0.00567]
[1755833864155,0.4661055,113560.0,113550.0,0.00567]
[1755833865486,0.44711303,113560.0,113550.0,0.00567]
[1755833866535,0.29775303,113560.0,113550.0,0.00567]
[1755833866746,0.43064262,113560.0,113550.0,0.00567]
[1755833866954,0.4223838,113560.0,113550.0,0.00567]
[1755833867584,0.42237846,113560.0,113550.0,0.00567]
[1755833868138,0.41618973,113560.0,113550.0,0.00567]
[1755833871306,0.41618973,113560.0,113550.0,0.032161]
[1755833873764,0.16618973,113560.0,113550.0,0.032161]
[1755833873985,0.16518973,113560.0,113550.0,0.032161]
[1755833874188,0.01578973,113560.0,113550.0,0.032161]
[1755833874409,0.01578973,113560.0,113550.0,0.033161]
[1755833874989,0.01378973,113560.0,113550.0,0.033161]
[1755833875449,0.01378973,113560.0,113550.0,0.034161]
[1755833880913,0.01378973,113560.0,113550.0,0.05161002]
[1755833881610,0.01378973,113560.0,113550.0,0.05699121]
[1755833884100,0.01378973,113560.0,113550.0,0.06139455]
[1755833885795,0.01378973,113560.0,113550.0,0.05919288]
[1755833886002,0.01378973,113560.0,113550.0,0.05699121]
[1755833886203,0.01378973,113560.0,113550.0,0.05496121]
[1755833886606,0.01378973,113560.0,113550.0,0.05694121]
[1755833891349,0.06776,113590.0,113550.0,0.05694121]
[1755833891578,0.01378662,113560.0,113550.0,0.05708557]
[1755833891834,0.01378662,113560.0,113550.0,0.03059457]
[1755833892039,0.06776,113590.0,113550.0,0.05708457]
[1755833892219,0.01378663,113560.0,113550.0,0.05610457]
[1755833892422,0.01378663,113560.0,113550.0,0.02961457]
[1755833892630,0.14904,113580.0,113550.0,0.02961457]
[1755833892846,0.01378664,113560.0,113550.0,0.05510457]
[1755833893094,0.01378664,113560.0,113550.0,0.03251555]
[1755833893284,0.5,113570.0,113550.0,0.03865555]
[1755833893415,0.01378693,113560.0,113550.0,0.03765555]
[1755833893871,0.01378693,113560.0,113550.0,0.01116555]
[1755833894079,0.01378693,113560.0,113550.0,0.03865655]
[1755833894280,0.01378693,113560.0,113550.0,0.03667655]
[1755833894703,0.01378693,113560.0,113550.0,0.03351655]
[1755833896023,0.01378693,113560.0,113550.0,0.03767655]
[1755833897830,0.01378693,113560.0,113550.0,0.00264436]
[1755833898061,0.18013198,113560.0,113550.0,0.00264436]
[1755833898268,4.27757798,113560.0,113550.0,0.00264436]
[1755833898680,4.36436415,113560.0,113550.0,0.00264436]
[1755833898897,4.36436415,113560.0,113550.0,0.00164436]
[1755833899113,4.36436415,113560.0,113550.0,0.00064436]
[1755833899319,4.36536415,113560.0,113550.0,0.00064436]
[1755833899524,4.6091272,113560.0,113550.0,0.00064436]
[1755833899730,4.62814675,113560.0,113550.0,0.00064436]
[1755833899935,4.63014675,113560.0,113550.0,0.00064436]
[1755833900077,4.62814675,113560.0,113550.0,0.00064436]
[1755833900291,4.63014675,113560.0,113550.0,0.00064436]
[1755833900500,4.63414675,113560.0,113550.0,0.00064436]
[1755833901967,5.2067165,113560.0,113550.0,0.00064436]
[1755833903445,5.20667093,113560.0,113550.0,0.00064436]
[1755833906631,5.2066539,113560.0,113550.0,0.00064436]
[1755833907426,5.2331529,113560.0,113550.0,0.00064436]
[1755833907837,5.14628325,113560.0,113550.0,0.00064436]
[1755833910962,5.146235,113560.0,113550.0,0.00064436]
[1755833912608,5.12975794,113560.0,113550.0,0.00064436]
[1755833912817,5.14619938,113560.0,113550.0,0.00064436]
[1755833915840,5.14620087,113560.0,113550.0,0.00064436]
[1755833916113,5.14620087,113560.0,113520.0,0.026499]
[1755833916114,0.1761497,113540.0,113520.0,0.0032]
[1755833916346,4.43133939,113530.0,113500.0,0.0037]
[1755833916601,4.097446,113520.0,113500.0,0.0037]
[1755833916813,4.097446,113520.0,113500.0,0.00384447]
[1755833916814,4.13905905,113520.0,113500.0,0.00384447]
[1755833917029,4.099426,113510.0,113480.0,0.03394251]
[1755833917255,0.1509,113510.0,113500.0,0.00216]
[1755833917472,0.14892,113520.0,113500.0,0.00536]
[1755833917684,4.597446,113510.0,113500.0,0.00536]
[1755833917913,4.097446,113510.0,113500.0,0.00536]
[1755833918344,4.098446,113510.0,113500.0,0.00536]
[1755833918554,0.001,113510.0,113500.0,0.00536]
[1755833919177,0.00298,113510.0,113480.0,0.13823804]
[1755833919424,0.00398,113510.0,113500.0,0.00216]
[1755833919662,0.01677408,113510.0,113500.0,0.00216]
[1755833919871,0.54228208,113510.0,113500.0,0.00316]
[1755833920077,4.63972808,113510.0,113500.0,0.00316]